{"text_format":"3","workbook":"xlsx","n_sheets":4,"sheets":["ESEMÉNYEK","NAPTÁR","NYOMTATHATÓ VERZIÓ","RENDSZERGAZDA"],"not_rendered":{"defined_names":18},"read":"whole","date_system":"1900"}

{"sheet":"ESEMÉNYEK","index":0,"n_rows":38,"n_cols":5,"rows_kept":38}
[]
[null,"HAVI KÖZÖSSÉGI"]
[null,"ESEMÉNYTERVEZŐ"]
[]
[]
[]
[]
[null,"DÁTUM","NAP","HÓNAP","ESEMÉNY NEVE"]
[null,"2016-07-01",{"$f":"IF(ISBLANK(tblEsemények[[#This Row],[DÁTUM]]),\"\",UPPER(TEXT(tblEsemények[[#This Row],[DÁTUM]],\"nnn\")))","v":"P"},{"$f":"IF(ISBLANK(tblEsemények[[#This Row],[DÁTUM]]),\"\",UPPER(TEXT(tblEsemények[[#This Row],[DÁTUM]],\"hhh\")))","v":"JÚL"},"Közösségi kert"]
[null,"2016-07-01",{"$f":"IF(ISBLANK(tblEsemények[[#This Row],[DÁTUM]]),\"\",UPPER(TEXT(tblEsemények[[#This Row],[DÁTUM]],\"nnn\")))","v":"P"},{"$f":"IF(ISBLANK(tblEsemények[[#This Row],[DÁTUM]]),\"\",UPPER(TEXT(tblEsemények[[#This Row],[DÁTUM]],\"hhh\")))","v":"JÚL"},"Városi bizottság"]
[null,"2016-07-02",{"$f":"IF(ISBLANK(tblEsemények[[#This Row],[DÁTUM]]),\"\",UPPER(TEXT(tblEsemények[[#This Row],[DÁTUM]],\"nnn\")))","v":"SZO"},{"$f":"IF(ISBLANK(tblEsemények[[#This Row],[DÁTUM]]),\"\",UPPER(TEXT(tblEsemények[[#This Row],[DÁTUM]],\"hhh\")))","v":"JÚL"},"Közösségi kert"]
[null,"2016-07-03",{"$f":"IF(ISBLANK(tblEsemények[[#This Row],[DÁTUM]]),\"\",UPPER(TEXT(tblEsemények[[#This Row],[DÁTUM]],\"nnn\")))","v":"V"},{"$f":"IF(ISBLANK(tblEsemények[[#This Row],[DÁTUM]]),\"\",UPPER(TEXT(tblEsemények[[#This Row],[DÁTUM]],\"hhh\")))","v":"JÚL"},"Moziest a parkban"]
[null,"2016-07-08",{"$f":"IF(ISBLANK(tblEsemények[[#This Row],[DÁTUM]]),\"\",UPPER(TEXT(tblEsemények[[#This Row],[DÁTUM]],\"nnn\")))","v":"P"},{"$f":"IF(ISBLANK(tblEsemények[[#This Row],[DÁTUM]]),\"\",UPPER(TEXT(tblEsemények[[#This Row],[DÁTUM]],\"hhh\")))","v":"JÚL"},"Városi bizottság"]
[null,"2016-07-11",{"$f":"IF(ISBLANK(tblEsemények[[#This Row],[DÁTUM]]),\"\",UPPER(TEXT(tblEsemények[[#This Row],[DÁTUM]],\"nnn\")))","v":"H"},{"$f":"IF(ISBLANK(tblEsemények[[#This Row],[DÁTUM]]),\"\",UPPER(TEXT(tblEsemények[[#This Row],[DÁTUM]],\"hhh\")))","v":"JÚL"},"Kamarai ebéd"]
[null,"2016-07-12",{"$f":"IF(ISBLANK(tblEsemények[[#This Row],[DÁTUM]]),\"\",UPPER(TEXT(tblEsemények[[#This Row],[DÁTUM]],\"nnn\")))","v":"K"},{"$f":"IF(ISBLANK(tblEsemények[[#This Row],[DÁTUM]]),\"\",UPPER(TEXT(tblEsemények[[#This Row],[DÁTUM]],\"hhh\")))","v":"JÚL"},"Régiségkiállítás"]
[null,"2016-07-14",{"$f":"IF(ISBLANK(tblEsemények[[#This Row],[DÁTUM]]),\"\",UPPER(TEXT(tblEsemények[[#This Row],[DÁTUM]],\"nnn\")))","v":"CS"},{"$f":"IF(ISBLANK(tblEsemények[[#This Row],[DÁTUM]]),\"\",UPPER(TEXT(tblEsemények[[#This Row],[DÁTUM]],\"hhh\")))","v":"JÚL"},"Közösségi műhely"]
[null,"2016-07-15",{"$f":"IF(ISBLANK(tblEsemények[[#This Row],[DÁTUM]]),\"\",UPPER(TEXT(tblEsemények[[#This Row],[DÁTUM]],\"nnn\")))","v":"P"},{"$f":"IF(ISBLANK(tblEsemények[[#This Row],[DÁTUM]]),\"\",UPPER(TEXT(tblEsemények[[#This Row],[DÁTUM]],\"hhh\")))","v":"JÚL"},"Városi bizottság"]
[null,"2016-07-19",{"$f":"IF(ISBLANK(tblEsemények[[#This Row],[DÁTUM]]),\"\",UPPER(TEXT(tblEsemények[[#This Row],[DÁTUM]],\"nnn\")))","v":"K"},{"$f":"IF(ISBLANK(tblEsemények[[#This Row],[DÁTUM]]),\"\",UPPER(TEXT(tblEsemények[[#This Row],[DÁTUM]],\"hhh\")))","v":"JÚL"},"Stratégiai tervezőműhely"]
[null,"2016-07-20",{"$f":"IF(ISBLANK(tblEsemények[[#This Row],[DÁTUM]]),\"\",UPPER(TEXT(tblEsemények[[#This Row],[DÁTUM]],\"nnn\")))","v":"SZE"},{"$f":"IF(ISBLANK(tblEsemények[[#This Row],[DÁTUM]]),\"\",UPPER(TEXT(tblEsemények[[#This Row],[DÁTUM]],\"hhh\")))","v":"JÚL"},"Parkkarbantartás"]
[null,"2016-07-22",{"$f":"IF(ISBLANK(tblEsemények[[#This Row],[DÁTUM]]),\"\",UPPER(TEXT(tblEsemények[[#This Row],[DÁTUM]],\"nnn\")))","v":"P"},{"$f":"IF(ISBLANK(tblEsemények[[#This Row],[DÁTUM]]),\"\",UPPER(TEXT(tblEsemények[[#This Row],[DÁTUM]],\"hhh\")))","v":"JÚL"},"Városi bizottság"]
[null,"2016-07-26",{"$f":"IF(ISBLANK(tblEsemények[[#This Row],[DÁTUM]]),\"\",UPPER(TEXT(tblEsemények[[#This Row],[DÁTUM]],\"nnn\")))","v":"K"},{"$f":"IF(ISBLANK(tblEsemények[[#This Row],[DÁTUM]]),\"\",UPPER(TEXT(tblEsemények[[#This Row],[DÁTUM]],\"hhh\")))","v":"JÚL"},"Belvárosi séta"]
[null,"2016-07-26",{"$f":"IF(ISBLANK(tblEsemények[[#This Row],[DÁTUM]]),\"\",UPPER(TEXT(tblEsemények[[#This Row],[DÁTUM]],\"nnn\")))","v":"K"},{"$f":"IF(ISBLANK(tblEsemények[[#This Row],[DÁTUM]]),\"\",UPPER(TEXT(tblEsemények[[#This Row],[DÁTUM]],\"hhh\")))","v":"JÚL"},"Kocsmatúra"]
[null,"2016-07-29",{"$f":"IF(ISBLANK(tblEsemények[[#This Row],[DÁTUM]]),\"\",UPPER(TEXT(tblEsemények[[#This Row],[DÁTUM]],\"nnn\")))","v":"P"},{"$f":"IF(ISBLANK(tblEsemények[[#This Row],[DÁTUM]]),\"\",UPPER(TEXT(tblEsemények[[#This Row],[DÁTUM]],\"hhh\")))","v":"JÚL"},"Városi bizottság"]
[null,"2016-08-05",{"$f":"IF(ISBLANK(tblEsemények[[#This Row],[DÁTUM]]),\"\",UPPER(TEXT(tblEsemények[[#This Row],[DÁTUM]],\"nnn\")))","v":"P"},{"$f":"IF(ISBLANK(tblEsemények[[#This Row],[DÁTUM]]),\"\",UPPER(TEXT(tblEsemények[[#This Row],[DÁTUM]],\"hhh\")))","v":"AUG"},"Városi bizottság"]
[null,"2016-08-10",{"$f":"IF(ISBLANK(tblEsemények[[#This Row],[DÁTUM]]),\"\",UPPER(TEXT(tblEsemények[[#This Row],[DÁTUM]],\"nnn\")))","v":"SZE"},{"$f":"IF(ISBLANK(tblEsemények[[#This Row],[DÁTUM]]),\"\",UPPER(TEXT(tblEsemények[[#This Row],[DÁTUM]],\"hhh\")))","v":"AUG"},"Parkkarbantartás"]
[null,"2016-08-12",{"$f":"IF(ISBLANK(tblEsemények[[#This Row],[DÁTUM]]),\"\",UPPER(TEXT(tblEsemények[[#This Row],[DÁTUM]],\"nnn\")))","v":"P"},{"$f":"IF(ISBLANK(tblEsemények[[#This Row],[DÁTUM]]),\"\",UPPER(TEXT(tblEsemények[[#This Row],[DÁTUM]],\"hhh\")))","v":"AUG"},"Városi bizottság"]
[null,"2016-08-13",{"$f":"IF(ISBLANK(tblEsemények[[#This Row],[DÁTUM]]),\"\",UPPER(TEXT(tblEsemények[[#This Row],[DÁTUM]],\"nnn\")))","v":"SZO"},{"$f":"IF(ISBLANK(tblEsemények[[#This Row],[DÁTUM]]),\"\",UPPER(TEXT(tblEsemények[[#This Row],[DÁTUM]],\"hhh\")))","v":"AUG"},"Közösségi kert"]
[null,"2016-09-01",{"$f":"IF(ISBLANK(tblEsemények[[#This Row],[DÁTUM]]),\"\",UPPER(TEXT(tblEsemények[[#This Row],[DÁTUM]],\"nnn\")))","v":"CS"},{"$f":"IF(ISBLANK(tblEsemények[[#This Row],[DÁTUM]]),\"\",UPPER(TEXT(tblEsemények[[#This Row],[DÁTUM]],\"hhh\")))","v":"SZEPT"},"Költségvetési bizottság"]
[null,"2016-10-01",{"$f":"IF(ISBLANK(tblEsemények[[#This Row],[DÁTUM]]),\"\",UPPER(TEXT(tblEsemények[[#This Row],[DÁTUM]],\"nnn\")))","v":"SZO"},{"$f":"IF(ISBLANK(tblEsemények[[#This Row],[DÁTUM]]),\"\",UPPER(TEXT(tblEsemények[[#This Row],[DÁTUM]],\"hhh\")))","v":"OKT"},"Költségvetési bizottság"]
[null,"2016-11-03",{"$f":"IF(ISBLANK(tblEsemények[[#This Row],[DÁTUM]]),\"\",UPPER(TEXT(tblEsemények[[#This Row],[DÁTUM]],\"nnn\")))","v":"CS"},{"$f":"IF(ISBLANK(tblEsemények[[#This Row],[DÁTUM]]),\"\",UPPER(TEXT(tblEsemények[[#This Row],[DÁTUM]],\"hhh\")))","v":"NOV"},"Költségvetési bizottság"]
[null,"2016-12-01",{"$f":"IF(ISBLANK(tblEsemények[[#This Row],[DÁTUM]]),\"\",UPPER(TEXT(tblEsemények[[#This Row],[DÁTUM]],\"nnn\")))","v":"CS"},{"$f":"IF(ISBLANK(tblEsemények[[#This Row],[DÁTUM]]),\"\",UPPER(TEXT(tblEsemények[[#This Row],[DÁTUM]],\"hhh\")))","v":"DEC"},"Költségvetési bizottság"]
[null,"2017-01-01",{"$f":"IF(ISBLANK(tblEsemények[[#This Row],[DÁTUM]]),\"\",UPPER(TEXT(tblEsemények[[#This Row],[DÁTUM]],\"nnn\")))","v":"V"},{"$f":"IF(ISBLANK(tblEsemények[[#This Row],[DÁTUM]]),\"\",UPPER(TEXT(tblEsemények[[#This Row],[DÁTUM]],\"hhh\")))","v":"JAN"},"Költségvetési bizottság"]
[null,"2017-02-02",{"$f":"IF(ISBLANK(tblEsemények[[#This Row],[DÁTUM]]),\"\",UPPER(TEXT(tblEsemények[[#This Row],[DÁTUM]],\"nnn\")))","v":"CS"},{"$f":"IF(ISBLANK(tblEsemények[[#This Row],[DÁTUM]]),\"\",UPPER(TEXT(tblEsemények[[#This Row],[DÁTUM]],\"hhh\")))","v":"FEBR"},"Költségvetési bizottság"]
[null,"2017-03-02",{"$f":"IF(ISBLANK(tblEsemények[[#This Row],[DÁTUM]]),\"\",UPPER(TEXT(tblEsemények[[#This Row],[DÁTUM]],\"nnn\")))","v":"CS"},{"$f":"IF(ISBLANK(tblEsemények[[#This Row],[DÁTUM]]),\"\",UPPER(TEXT(tblEsemények[[#This Row],[DÁTUM]],\"hhh\")))","v":"MÁRC"},"Költségvetési bizottság"]
[null,"2017-04-01",{"$f":"IF(ISBLANK(tblEsemények[[#This Row],[DÁTUM]]),\"\",UPPER(TEXT(tblEsemények[[#This Row],[DÁTUM]],\"nnn\")))","v":"SZO"},{"$f":"IF(ISBLANK(tblEsemények[[#This Row],[DÁTUM]]),\"\",UPPER(TEXT(tblEsemények[[#This Row],[DÁTUM]],\"hhh\")))","v":"ÁPR"},"Költségvetési bizottság"]
[null,"2017-05-01",{"$f":"IF(ISBLANK(tblEsemények[[#This Row],[DÁTUM]]),\"\",UPPER(TEXT(tblEsemények[[#This Row],[DÁTUM]],\"nnn\")))","v":"H"},{"$f":"IF(ISBLANK(tblEsemények[[#This Row],[DÁTUM]]),\"\",UPPER(TEXT(tblEsemények[[#This Row],[DÁTUM]],\"hhh\")))","v":"MÁJ"},"Költségvetési bizottság"]
[null,"2017-06-01",{"$f":"IF(ISBLANK(tblEsemények[[#This Row],[DÁTUM]]),\"\",UPPER(TEXT(tblEsemények[[#This Row],[DÁTUM]],\"nnn\")))","v":"CS"},{"$f":"IF(ISBLANK(tblEsemények[[#This Row],[DÁTUM]]),\"\",UPPER(TEXT(tblEsemények[[#This Row],[DÁTUM]],\"hhh\")))","v":"JÚN"},"Költségvetési bizottság"]
[null,"2017-06-02",{"$f":"IF(ISBLANK(tblEsemények[[#This Row],[DÁTUM]]),\"\",UPPER(TEXT(tblEsemények[[#This Row],[DÁTUM]],\"nnn\")))","v":"P"},{"$f":"IF(ISBLANK(tblEsemények[[#This Row],[DÁTUM]]),\"\",UPPER(TEXT(tblEsemények[[#This Row],[DÁTUM]],\"hhh\")))","v":"JÚN"},"Városi bizottság"]

{"sheet":"NAPTÁR","index":1,"n_rows":35,"n_cols":21,"rows_kept":35,"merged":[[1,5,1,11],[30,8,34,20]]}
[]
[null,null,2016,null,null,{"$f":"LOOKUP(HónapSz,tblHónapok[SZÁM],tblHónapok[HÓNAP])","v":"JÚLIUS"}]
[null,null,7,null,null,{"$f":"DATE(ÉvMegtekintése,HónapSz,1)","v":"2016-07-01"},null,null,{"$f":"WEEKDAY(KezdőDátum)","v":6}]
[null,null,"HÉTFŐ",null,null,"KEDD",null,null,"SZERDA",null,null,"CSÜTÖRTÖK",null,null,"PÉNTEK",null,null,"SZOMBAT",null,null,"VASÁRNAP"]
[]
[null,null,{"$f":"KezdőDátum-(WEEKDAY(KezdőDátum)-2)+{0;1;2;3;4;5}*7 +{1,2,3,4,5,6,7}-3+COLUMN(B1)","v":"2016-06-27"},null,null,{"$f":"KezdőDátum-(WEEKDAY(KezdőDátum)-2)+{0;1;2;3;4;5}*7 +{1,2,3,4,5,6,7}-3+COLUMN(C1)","v":"2016-06-28"},null,null,{"$f":"KezdőDátum-(WEEKDAY(KezdőDátum)-2)+{0;1;2;3;4;5}*7 +{1,2,3,4,5,6,7}-3+COLUMN(D1)","v":"2016-06-29"},null,null,{"$f":"KezdőDátum-(WEEKDAY(KezdőDátum)-2)+{0;1;2;3;4;5}*7 +{1,2,3,4,5,6,7}-3+COLUMN(E1)","v":"2016-06-30"},null,null,{"$f":"KezdőDátum-(WEEKDAY(KezdőDátum)-2)+{0;1;2;3;4;5}*7 +{1,2,3,4,5,6,7}-3+COLUMN(F1)","v":"2016-07-01"},null,null,{"$f":"KezdőDátum-(WEEKDAY(KezdőDátum)-2)+{0;1;2;3;4;5}*7 +{1,2,3,4,5,6,7}-3+COLUMN(G1)","v":"2016-07-02"},null,null,{"$f":"KezdőDátum-(WEEKDAY(KezdőDátum)-2)+{0;1;2;3;4;5}*7 +{1,2,3,4,5,6,7}-3+COLUMN(H1)","v":"2016-07-03"}]
[null,null,{"$f":"IFERROR(INDEX(tblEsemények[],SMALL(IF(Dátumok=C$6,ROW(Dátumok)),ROW(1:1))-TáblázatsorElső,4),\"\")","v":""},null,null,{"$f":"IFERROR(INDEX(tblEsemények[],SMALL(IF(Dátumok=F$6,ROW(Dátumok)),ROW(1:1))-TáblázatsorElső,4),\"\")","v":""},null,null,{"$f":"IFERROR(INDEX(tblEsemények[],SMALL(IF(Dátumok=I$6,ROW(Dátumok)),ROW(1:1))-TáblázatsorElső,4),\"\")","v":""},null,null,{"$f":"IFERROR(INDEX(tblEsemények[],SMALL(IF(Dátumok=L$6,ROW(Dátumok)),ROW(1:1))-TáblázatsorElső,4),\"\")","v":""},null,null,{"$f":"IFERROR(INDEX(tblEsemények[],SMALL(IF(Dátumok=O$6,ROW(Dátumok)),ROW(1:1))-TáblázatsorElső,4),\"\")","v":"Közösségi kert"},null,null,{"$f":"IFERROR(INDEX(tblEsemények[],SMALL(IF(Dátumok=R$6,ROW(Dátumok)),ROW(1:1))-TáblázatsorElső,4),\"\")","v":"Közösségi kert"},null,null,{"$f":"IFERROR(INDEX(tblEsemények[],SMALL(IF(Dátumok=U$6,ROW(Dátumok)),ROW(1:1))-TáblázatsorElső,4),\"\")","v":"Moziest a parkban"}]
[null,null,{"$f":"IFERROR(INDEX(tblEsemények[],SMALL(IF(Dátumok=C$6,ROW(Dátumok)),ROW(2:2))-TáblázatsorElső,4),\"\")","v":""},null,null,{"$f":"IFERROR(INDEX(tblEsemények[],SMALL(IF(Dátumok=F$6,ROW(Dátumok)),ROW(2:2))-TáblázatsorElső,4),\"\")","v":""},null,null,{"$f":"IFERROR(INDEX(tblEsemények[],SMALL(IF(Dátumok=I$6,ROW(Dátumok)),ROW(2:2))-TáblázatsorElső,4),\"\")","v":""},null,null,{"$f":"IFERROR(INDEX(tblEsemények[],SMALL(IF(Dátumok=L$6,ROW(Dátumok)),ROW(2:2))-TáblázatsorElső,4),\"\")","v":""},null,null,{"$f":"IFERROR(INDEX(tblEsemények[],SMALL(IF(Dátumok=O$6,ROW(Dátumok)),ROW(2:2))-TáblázatsorElső,4),\"\")","v":"Városi bizottság"},null,null,{"$f":"IFERROR(INDEX(tblEsemények[],SMALL(IF(Dátumok=R$6,ROW(Dátumok)),ROW(2:2))-TáblázatsorElső,4),\"\")","v":""},null,null,{"$f":"IFERROR(INDEX(tblEsemények[],SMALL(IF(Dátumok=U$6,ROW(Dátumok)),ROW(2:2))-TáblázatsorElső,4),\"\")","v":""}]
[null,null,{"$f":"IFERROR(INDEX(tblEsemények[],SMALL(IF(Dátumok=C$6,ROW(Dátumok)),ROW(3:3))-TáblázatsorElső,4),\"\")","v":""},null,null,{"$f":"IFERROR(INDEX(tblEsemények[],SMALL(IF(Dátumok=F$6,ROW(Dátumok)),ROW(3:3))-TáblázatsorElső,4),\"\")","v":""},null,null,{"$f":"IFERROR(INDEX(tblEsemények[],SMALL(IF(Dátumok=I$6,ROW(Dátumok)),ROW(3:3))-TáblázatsorElső,4),\"\")","v":""},null,null,{"$f":"IFERROR(INDEX(tblEsemények[],SMALL(IF(Dátumok=L$6,ROW(Dátumok)),ROW(3:3))-TáblázatsorElső,4),\"\")","v":""},null,null,{"$f":"IFERROR(INDEX(tblEsemények[],SMALL(IF(Dátumok=O$6,ROW(Dátumok)),ROW(3:3))-TáblázatsorElső,4),\"\")","v":""},null,null,{"$f":"IFERROR(INDEX(tblEsemények[],SMALL(IF(Dátumok=R$6,ROW(Dátumok)),ROW(3:3))-TáblázatsorElső,4),\"\")","v":""},null,null,{"$f":"IFERROR(INDEX(tblEsemények[],SMALL(IF(Dátumok=U$6,ROW(Dátumok)),ROW(3:3))-TáblázatsorElső,4),\"\")","v":""}]
[null,null,{"$f":"IFERROR(INDEX(tblEsemények[],SMALL(IF(Dátumok=C$6,ROW(Dátumok)),ROW(4:4))-TáblázatsorElső,4),\"\")","v":""},null,null,{"$f":"IFERROR(INDEX(tblEsemények[],SMALL(IF(Dátumok=F$6,ROW(Dátumok)),ROW(4:4))-TáblázatsorElső,4),\"\")","v":""},null,null,{"$f":"IFERROR(INDEX(tblEsemények[],SMALL(IF(Dátumok=I$6,ROW(Dátumok)),ROW(4:4))-TáblázatsorElső,4),\"\")","v":""},null,null,{"$f":"IFERROR(INDEX(tblEsemények[],SMALL(IF(Dátumok=L$6,ROW(Dátumok)),ROW(4:4))-TáblázatsorElső,4),\"\")","v":""},null,null,{"$f":"IFERROR(INDEX(tblEsemények[],SMALL(IF(Dátumok=O$6,ROW(Dátumok)),ROW(4:4))-TáblázatsorElső,4),\"\")","v":""},null,null,{"$f":"IFERROR(INDEX(tblEsemények[],SMALL(IF(Dátumok=R$6,ROW(Dátumok)),ROW(4:4))-TáblázatsorElső,4),\"\")","v":""},null,null,{"$f":"IFERROR(INDEX(tblEsemények[],SMALL(IF(Dátumok=U$6,ROW(Dátumok)),ROW(4:4))-TáblázatsorElső,4),\"\")","v":""}]
[null,null,{"$f":"U6+1","v":"2016-07-04"},null,null,{"$f":"C11+1","v":"2016-07-05"},null,null,{"$f":"F11+1","v":"2016-07-06"},null,null,{"$f":"I11+1","v":"2016-07-07"},null,null,{"$f":"L11+1","v":"2016-07-08"},null,null,{"$f":"O11+1","v":"2016-07-09"},null,null,{"$f":"R11+1","v":"2016-07-10"}]
[null,null,{"$f":"IFERROR(INDEX(tblEsemények[],SMALL(IF(Dátumok=C$11,ROW(Dátumok)),ROW(1:1))-TáblázatsorElső,4),\"\")","v":""},null,null,{"$f":"IFERROR(INDEX(tblEsemények[],SMALL(IF(Dátumok=F$11,ROW(Dátumok)),ROW(1:1))-TáblázatsorElső,4),\"\")","v":""},null,null,{"$f":"IFERROR(INDEX(tblEsemények[],SMALL(IF(Dátumok=I$11,ROW(Dátumok)),ROW(1:1))-TáblázatsorElső,4),\"\")","v":""},null,null,{"$f":"IFERROR(INDEX(tblEsemények[],SMALL(IF(Dátumok=L$11,ROW(Dátumok)),ROW(1:1))-TáblázatsorElső,4),\"\")","v":""},null,null,{"$f":"IFERROR(INDEX(tblEsemények[],SMALL(IF(Dátumok=O$11,ROW(Dátumok)),ROW(1:1))-TáblázatsorElső,4),\"\")","v":"Városi bizottság"},null,null,{"$f":"IFERROR(INDEX(tblEsemények[],SMALL(IF(Dátumok=R$11,ROW(Dátumok)),ROW(1:1))-TáblázatsorElső,4),\"\")","v":""},null,null,{"$f":"IFERROR(INDEX(tblEsemények[],SMALL(IF(Dátumok=U$11,ROW(Dátumok)),ROW(1:1))-TáblázatsorElső,4),\"\")","v":""}]
[null,null,{"$f":"IFERROR(INDEX(tblEsemények[],SMALL(IF(Dátumok=C$11,ROW(Dátumok)),ROW(2:2))-TáblázatsorElső,4),\"\")","v":""},null,null,{"$f":"IFERROR(INDEX(tblEsemények[],SMALL(IF(Dátumok=F$11,ROW(Dátumok)),ROW(2:2))-TáblázatsorElső,4),\"\")","v":""},null,null,{"$f":"IFERROR(INDEX(tblEsemények[],SMALL(IF(Dátumok=I$11,ROW(Dátumok)),ROW(2:2))-TáblázatsorElső,4),\"\")","v":""},null,null,{"$f":"IFERROR(INDEX(tblEsemények[],SMALL(IF(Dátumok=L$11,ROW(Dátumok)),ROW(2:2))-TáblázatsorElső,4),\"\")","v":""},null,null,{"$f":"IFERROR(INDEX(tblEsemények[],SMALL(IF(Dátumok=O$11,ROW(Dátumok)),ROW(2:2))-TáblázatsorElső,4),\"\")","v":""},null,null,{"$f":"IFERROR(INDEX(tblEsemények[],SMALL(IF(Dátumok=R$11,ROW(Dátumok)),ROW(2:2))-TáblázatsorElső,4),\"\")","v":""},null,null,{"$f":"IFERROR(INDEX(tblEsemények[],SMALL(IF(Dátumok=U$11,ROW(Dátumok)),ROW(2:2))-TáblázatsorElső,4),\"\")","v":""}]
[null,null,{"$f":"IFERROR(INDEX(tblEsemények[],SMALL(IF(Dátumok=C$11,ROW(Dátumok)),ROW(3:3))-TáblázatsorElső,4),\"\")","v":""},null,null,{"$f":"IFERROR(INDEX(tblEsemények[],SMALL(IF(Dátumok=F$11,ROW(Dátumok)),ROW(3:3))-TáblázatsorElső,4),\"\")","v":""},null,null,{"$f":"IFERROR(INDEX(tblEsemények[],SMALL(IF(Dátumok=I$11,ROW(Dátumok)),ROW(3:3))-TáblázatsorElső,4),\"\")","v":""},null,null,{"$f":"IFERROR(INDEX(tblEsemények[],SMALL(IF(Dátumok=L$11,ROW(Dátumok)),ROW(3:3))-TáblázatsorElső,4),\"\")","v":""},null,null,{"$f":"IFERROR(INDEX(tblEsemények[],SMALL(IF(Dátumok=O$11,ROW(Dátumok)),ROW(3:3))-TáblázatsorElső,4),\"\")","v":""},null,null,{"$f":"IFERROR(INDEX(tblEsemények[],SMALL(IF(Dátumok=R$11,ROW(Dátumok)),ROW(3:3))-TáblázatsorElső,4),\"\")","v":""},null,null,{"$f":"IFERROR(INDEX(tblEsemények[],SMALL(IF(Dátumok=U$11,ROW(Dátumok)),ROW(3:3))-TáblázatsorElső,4),\"\")","v":""}]
[null,null,{"$f":"IFERROR(INDEX(tblEsemények[],SMALL(IF(Dátumok=C$11,ROW(Dátumok)),ROW(4:4))-TáblázatsorElső,4),\"\")","v":""},null,null,{"$f":"IFERROR(INDEX(tblEsemények[],SMALL(IF(Dátumok=F$11,ROW(Dátumok)),ROW(4:4))-TáblázatsorElső,4),\"\")","v":""},null,null,{"$f":"IFERROR(INDEX(tblEsemények[],SMALL(IF(Dátumok=I$11,ROW(Dátumok)),ROW(4:4))-TáblázatsorElső,4),\"\")","v":""},null,null,{"$f":"IFERROR(INDEX(tblEsemények[],SMALL(IF(Dátumok=L$11,ROW(Dátumok)),ROW(4:4))-TáblázatsorElső,4),\"\")","v":""},null,null,{"$f":"IFERROR(INDEX(tblEsemények[],SMALL(IF(Dátumok=O$11,ROW(Dátumok)),ROW(4:4))-TáblázatsorElső,4),\"\")","v":""},null,null,{"$f":"IFERROR(INDEX(tblEsemények[],SMALL(IF(Dátumok=R$11,ROW(Dátumok)),ROW(4:4))-TáblázatsorElső,4),\"\")","v":""},null,null,{"$f":"IFERROR(INDEX(tblEsemények[],SMALL(IF(Dátumok=U$11,ROW(Dátumok)),ROW(4:4))-TáblázatsorElső,4),\"\")","v":""}]
[null,null,{"$f":"U11+1","v":"2016-07-11"},null,null,{"$f":"C16+1","v":"2016-07-12"},null,null,{"$f":"F16+1","v":"2016-07-13"},null,null,{"$f":"I16+1","v":"2016-07-14"},null,null,{"$f":"L16+1","v":"2016-07-15"},null,null,{"$f":"O16+1","v":"2016-07-16"},null,null,{"$f":"R16+1","v":"2016-07-17"}]
[null,null,{"$f":"IFERROR(INDEX(tblEsemények[],SMALL(IF(Dátumok=C$16,ROW(Dátumok)),ROW(1:1))-TáblázatsorElső,4),\"\")","v":"Kamarai ebéd"},null,null,{"$f":"IFERROR(INDEX(tblEsemények[],SMALL(IF(Dátumok=F$16,ROW(Dátumok)),ROW(1:1))-TáblázatsorElső,4),\"\")","v":"Régiségkiállítás"},null,null,{"$f":"IFERROR(INDEX(tblEsemények[],SMALL(IF(Dátumok=I$16,ROW(Dátumok)),ROW(1:1))-TáblázatsorElső,4),\"\")","v":""},null,null,{"$f":"IFERROR(INDEX(tblEsemények[],SMALL(IF(Dátumok=L$16,ROW(Dátumok)),ROW(1:1))-TáblázatsorElső,4),\"\")","v":"Közösségi műhely"},null,null,{"$f":"IFERROR(INDEX(tblEsemények[],SMALL(IF(Dátumok=O$16,ROW(Dátumok)),ROW(1:1))-TáblázatsorElső,4),\"\")","v":"Városi bizottság"},null,null,{"$f":"IFERROR(INDEX(tblEsemények[],SMALL(IF(Dátumok=R$16,ROW(Dátumok)),ROW(1:1))-TáblázatsorElső,4),\"\")","v":""},null,null,{"$f":"IFERROR(INDEX(tblEsemények[],SMALL(IF(Dátumok=U$16,ROW(Dátumok)),ROW(1:1))-TáblázatsorElső,4),\"\")","v":""}]
[null,null,{"$f":"IFERROR(INDEX(tblEsemények[],SMALL(IF(Dátumok=C$16,ROW(Dátumok)),ROW(2:2))-TáblázatsorElső,4),\"\")","v":""},null,null,{"$f":"IFERROR(INDEX(tblEsemények[],SMALL(IF(Dátumok=F$16,ROW(Dátumok)),ROW(2:2))-TáblázatsorElső,4),\"\")","v":""},null,null,{"$f":"IFERROR(INDEX(tblEsemények[],SMALL(IF(Dátumok=I$16,ROW(Dátumok)),ROW(2:2))-TáblázatsorElső,4),\"\")","v":""},null,null,{"$f":"IFERROR(INDEX(tblEsemények[],SMALL(IF(Dátumok=L$16,ROW(Dátumok)),ROW(2:2))-TáblázatsorElső,4),\"\")","v":""},null,null,{"$f":"IFERROR(INDEX(tblEsemények[],SMALL(IF(Dátumok=O$16,ROW(Dátumok)),ROW(2:2))-TáblázatsorElső,4),\"\")","v":""},null,null,{"$f":"IFERROR(INDEX(tblEsemények[],SMALL(IF(Dátumok=R$16,ROW(Dátumok)),ROW(2:2))-TáblázatsorElső,4),\"\")","v":""},null,null,{"$f":"IFERROR(INDEX(tblEsemények[],SMALL(IF(Dátumok=U$16,ROW(Dátumok)),ROW(2:2))-TáblázatsorElső,4),\"\")","v":""}]
[null,null,{"$f":"IFERROR(INDEX(tblEsemények[],SMALL(IF(Dátumok=C$16,ROW(Dátumok)),ROW(3:3))-TáblázatsorElső,4),\"\")","v":""},null,null,{"$f":"IFERROR(INDEX(tblEsemények[],SMALL(IF(Dátumok=F$16,ROW(Dátumok)),ROW(3:3))-TáblázatsorElső,4),\"\")","v":""},null,null,{"$f":"IFERROR(INDEX(tblEsemények[],SMALL(IF(Dátumok=I$16,ROW(Dátumok)),ROW(3:3))-TáblázatsorElső,4),\"\")","v":""},null,null,{"$f":"IFERROR(INDEX(tblEsemények[],SMALL(IF(Dátumok=L$16,ROW(Dátumok)),ROW(3:3))-TáblázatsorElső,4),\"\")","v":""},null,null,{"$f":"IFERROR(INDEX(tblEsemények[],SMALL(IF(Dátumok=O$16,ROW(Dátumok)),ROW(3:3))-TáblázatsorElső,4),\"\")","v":""},null,null,{"$f":"IFERROR(INDEX(tblEsemények[],SMALL(IF(Dátumok=R$16,ROW(Dátumok)),ROW(3:3))-TáblázatsorElső,4),\"\")","v":""},null,null,{"$f":"IFERROR(INDEX(tblEsemények[],SMALL(IF(Dátumok=U$16,ROW(Dátumok)),ROW(3:3))-TáblázatsorElső,4),\"\")","v":""}]
[null,null,{"$f":"IFERROR(INDEX(tblEsemények[],SMALL(IF(Dátumok=C$16,ROW(Dátumok)),ROW(4:4))-TáblázatsorElső,4),\"\")","v":""},null,null,{"$f":"IFERROR(INDEX(tblEsemények[],SMALL(IF(Dátumok=F$16,ROW(Dátumok)),ROW(4:4))-TáblázatsorElső,4),\"\")","v":""},null,null,{"$f":"IFERROR(INDEX(tblEsemények[],SMALL(IF(Dátumok=I$16,ROW(Dátumok)),ROW(4:4))-TáblázatsorElső,4),\"\")","v":""},null,null,{"$f":"IFERROR(INDEX(tblEsemények[],SMALL(IF(Dátumok=L$16,ROW(Dátumok)),ROW(4:4))-TáblázatsorElső,4),\"\")","v":""},null,null,{"$f":"IFERROR(INDEX(tblEsemények[],SMALL(IF(Dátumok=O$16,ROW(Dátumok)),ROW(4:4))-TáblázatsorElső,4),\"\")","v":""},null,null,{"$f":"IFERROR(INDEX(tblEsemények[],SMALL(IF(Dátumok=R$16,ROW(Dátumok)),ROW(4:4))-TáblázatsorElső,4),\"\")","v":""},null,null,{"$f":"IFERROR(INDEX(tblEsemények[],SMALL(IF(Dátumok=U$16,ROW(Dátumok)),ROW(4:4))-TáblázatsorElső,4),\"\")","v":""}]
[null,null,{"$f":"U16+1","v":"2016-07-18"},null,null,{"$f":"C21+1","v":"2016-07-19"},null,null,{"$f":"F21+1","v":"2016-07-20"},null,null,{"$f":"I21+1","v":"2016-07-21"},null,null,{"$f":"L21+1","v":"2016-07-22"},null,null,{"$f":"O21+1","v":"2016-07-23"},null,null,{"$f":"R21+1","v":"2016-07-24"}]
[null,null,{"$f":"IFERROR(INDEX(tblEsemények[],SMALL(IF(Dátumok=C$21,ROW(Dátumok)),ROW(1:1))-TáblázatsorElső,4),\"\")","v":""},null,null,{"$f":"IFERROR(INDEX(tblEsemények[],SMALL(IF(Dátumok=F$21,ROW(Dátumok)),ROW(1:1))-TáblázatsorElső,4),\"\")","v":"Stratégiai tervezőműhely"},null,null,{"$f":"IFERROR(INDEX(tblEsemények[],SMALL(IF(Dátumok=I$21,ROW(Dátumok)),ROW(1:1))-TáblázatsorElső,4),\"\")","v":"Parkkarbantartás"},null,null,{"$f":"IFERROR(INDEX(tblEsemények[],SMALL(IF(Dátumok=L$21,ROW(Dátumok)),ROW(1:1))-TáblázatsorElső,4),\"\")","v":""},null,null,{"$f":"IFERROR(INDEX(tblEsemények[],SMALL(IF(Dátumok=O$21,ROW(Dátumok)),ROW(1:1))-TáblázatsorElső,4),\"\")","v":"Városi bizottság"},null,null,{"$f":"IFERROR(INDEX(tblEsemények[],SMALL(IF(Dátumok=R$21,ROW(Dátumok)),ROW(1:1))-TáblázatsorElső,4),\"\")","v":""},null,null,{"$f":"IFERROR(INDEX(tblEsemények[],SMALL(IF(Dátumok=U$21,ROW(Dátumok)),ROW(1:1))-TáblázatsorElső,4),\"\")","v":""}]
[null,null,{"$f":"IFERROR(INDEX(tblEsemények[],SMALL(IF(Dátumok=C$21,ROW(Dátumok)),ROW(2:2))-TáblázatsorElső,4),\"\")","v":""},null,null,{"$f":"IFERROR(INDEX(tblEsemények[],SMALL(IF(Dátumok=F$21,ROW(Dátumok)),ROW(2:2))-TáblázatsorElső,4),\"\")","v":""},null,null,{"$f":"IFERROR(INDEX(tblEsemények[],SMALL(IF(Dátumok=I$21,ROW(Dátumok)),ROW(2:2))-TáblázatsorElső,4),\"\")","v":""},null,null,{"$f":"IFERROR(INDEX(tblEsemények[],SMALL(IF(Dátumok=L$21,ROW(Dátumok)),ROW(2:2))-TáblázatsorElső,4),\"\")","v":""},null,null,{"$f":"IFERROR(INDEX(tblEsemények[],SMALL(IF(Dátumok=O$21,ROW(Dátumok)),ROW(2:2))-TáblázatsorElső,4),\"\")","v":""},null,null,{"$f":"IFERROR(INDEX(tblEsemények[],SMALL(IF(Dátumok=R$21,ROW(Dátumok)),ROW(2:2))-TáblázatsorElső,4),\"\")","v":""},null,null,{"$f":"IFERROR(INDEX(tblEsemények[],SMALL(IF(Dátumok=U$21,ROW(Dátumok)),ROW(2:2))-TáblázatsorElső,4),\"\")","v":""}]
[null,null,{"$f":"IFERROR(INDEX(tblEsemények[],SMALL(IF(Dátumok=C$21,ROW(Dátumok)),ROW(3:3))-TáblázatsorElső,4),\"\")","v":""},null,null,{"$f":"IFERROR(INDEX(tblEsemények[],SMALL(IF(Dátumok=F$21,ROW(Dátumok)),ROW(3:3))-TáblázatsorElső,4),\"\")","v":""},null,null,{"$f":"IFERROR(INDEX(tblEsemények[],SMALL(IF(Dátumok=I$21,ROW(Dátumok)),ROW(3:3))-TáblázatsorElső,4),\"\")","v":""},null,null,{"$f":"IFERROR(INDEX(tblEsemények[],SMALL(IF(Dátumok=L$21,ROW(Dátumok)),ROW(3:3))-TáblázatsorElső,4),\"\")","v":""},null,null,{"$f":"IFERROR(INDEX(tblEsemények[],SMALL(IF(Dátumok=O$21,ROW(Dátumok)),ROW(3:3))-TáblázatsorElső,4),\"\")","v":""},null,null,{"$f":"IFERROR(INDEX(tblEsemények[],SMALL(IF(Dátumok=R$21,ROW(Dátumok)),ROW(3:3))-TáblázatsorElső,4),\"\")","v":""},null,null,{"$f":"IFERROR(INDEX(tblEsemények[],SMALL(IF(Dátumok=U$21,ROW(Dátumok)),ROW(3:3))-TáblázatsorElső,4),\"\")","v":""}]
[null,null,{"$f":"IFERROR(INDEX(tblEsemények[],SMALL(IF(Dátumok=C$21,ROW(Dátumok)),ROW(4:4))-TáblázatsorElső,4),\"\")","v":""},null,null,{"$f":"IFERROR(INDEX(tblEsemények[],SMALL(IF(Dátumok=F$21,ROW(Dátumok)),ROW(4:4))-TáblázatsorElső,4),\"\")","v":""},null,null,{"$f":"IFERROR(INDEX(tblEsemények[],SMALL(IF(Dátumok=I$21,ROW(Dátumok)),ROW(4:4))-TáblázatsorElső,4),\"\")","v":""},null,null,{"$f":"IFERROR(INDEX(tblEsemények[],SMALL(IF(Dátumok=L$21,ROW(Dátumok)),ROW(4:4))-TáblázatsorElső,4),\"\")","v":""},null,null,{"$f":"IFERROR(INDEX(tblEsemények[],SMALL(IF(Dátumok=O$21,ROW(Dátumok)),ROW(4:4))-TáblázatsorElső,4),\"\")","v":""},null,null,{"$f":"IFERROR(INDEX(tblEsemények[],SMALL(IF(Dátumok=R$21,ROW(Dátumok)),ROW(4:4))-TáblázatsorElső,4),\"\")","v":""},null,null,{"$f":"IFERROR(INDEX(tblEsemények[],SMALL(IF(Dátumok=U$21,ROW(Dátumok)),ROW(4:4))-TáblázatsorElső,4),\"\")","v":""}]
[null,null,{"$f":"U21+1","v":"2016-07-25"},null,null,{"$f":"C26+1","v":"2016-07-26"},null,null,{"$f":"F26+1","v":"2016-07-27"},null,null,{"$f":"I26+1","v":"2016-07-28"},null,null,{"$f":"L26+1","v":"2016-07-29"},null,null,{"$f":"O26+1","v":"2016-07-30"},null,null,{"$f":"R26+1","v":"2016-07-31"}]
[null,null,{"$f":"IFERROR(INDEX(tblEsemények[],SMALL(IF(Dátumok=C$26,ROW(Dátumok)),ROW(1:1))-TáblázatsorElső,4),\"\")","v":""},null,null,{"$f":"IFERROR(INDEX(tblEsemények[],SMALL(IF(Dátumok=F$26,ROW(Dátumok)),ROW(1:1))-TáblázatsorElső,4),\"\")","v":"Belvárosi séta"},null,null,{"$f":"IFERROR(INDEX(tblEsemények[],SMALL(IF(Dátumok=I$26,ROW(Dátumok)),ROW(1:1))-TáblázatsorElső,4),\"\")","v":""},null,null,{"$f":"IFERROR(INDEX(tblEsemények[],SMALL(IF(Dátumok=L$26,ROW(Dátumok)),ROW(1:1))-TáblázatsorElső,4),\"\")","v":""},null,null,{"$f":"IFERROR(INDEX(tblEsemények[],SMALL(IF(Dátumok=O$26,ROW(Dátumok)),ROW(1:1))-TáblázatsorElső,4),\"\")","v":"Városi bizottság"},null,null,{"$f":"IFERROR(INDEX(tblEsemények[],SMALL(IF(Dátumok=R$26,ROW(Dátumok)),ROW(1:1))-TáblázatsorElső,4),\"\")","v":""},null,null,{"$f":"IFERROR(INDEX(tblEsemények[],SMALL(IF(Dátumok=U$26,ROW(Dátumok)),ROW(1:1))-TáblázatsorElső,4),\"\")","v":""}]
[null,null,{"$f":"IFERROR(INDEX(tblEsemények[],SMALL(IF(Dátumok=C$26,ROW(Dátumok)),ROW(2:2))-TáblázatsorElső,4),\"\")","v":""},null,null,{"$f":"IFERROR(INDEX(tblEsemények[],SMALL(IF(Dátumok=F$26,ROW(Dátumok)),ROW(2:2))-TáblázatsorElső,4),\"\")","v":"Kocsmatúra"},null,null,{"$f":"IFERROR(INDEX(tblEsemények[],SMALL(IF(Dátumok=I$26,ROW(Dátumok)),ROW(2:2))-TáblázatsorElső,4),\"\")","v":""},null,null,{"$f":"IFERROR(INDEX(tblEsemények[],SMALL(IF(Dátumok=L$26,ROW(Dátumok)),ROW(2:2))-TáblázatsorElső,4),\"\")","v":""},null,null,{"$f":"IFERROR(INDEX(tblEsemények[],SMALL(IF(Dátumok=O$26,ROW(Dátumok)),ROW(2:2))-TáblázatsorElső,4),\"\")","v":""},null,null,{"$f":"IFERROR(INDEX(tblEsemények[],SMALL(IF(Dátumok=R$26,ROW(Dátumok)),ROW(2:2))-TáblázatsorElső,4),\"\")","v":""},null,null,{"$f":"IFERROR(INDEX(tblEsemények[],SMALL(IF(Dátumok=U$26,ROW(Dátumok)),ROW(2:2))-TáblázatsorElső,4),\"\")","v":""}]
[null,null,{"$f":"IFERROR(INDEX(tblEsemények[],SMALL(IF(Dátumok=C$26,ROW(Dátumok)),ROW(3:3))-TáblázatsorElső,4),\"\")","v":""},null,null,{"$f":"IFERROR(INDEX(tblEsemények[],SMALL(IF(Dátumok=F$26,ROW(Dátumok)),ROW(3:3))-TáblázatsorElső,4),\"\")","v":""},null,null,{"$f":"IFERROR(INDEX(tblEsemények[],SMALL(IF(Dátumok=I$26,ROW(Dátumok)),ROW(3:3))-TáblázatsorElső,4),\"\")","v":""},null,null,{"$f":"IFERROR(INDEX(tblEsemények[],SMALL(IF(Dátumok=L$26,ROW(Dátumok)),ROW(3:3))-TáblázatsorElső,4),\"\")","v":""},null,null,{"$f":"IFERROR(INDEX(tblEsemények[],SMALL(IF(Dátumok=O$26,ROW(Dátumok)),ROW(3:3))-TáblázatsorElső,4),\"\")","v":""},null,null,{"$f":"IFERROR(INDEX(tblEsemények[],SMALL(IF(Dátumok=R$26,ROW(Dátumok)),ROW(3:3))-TáblázatsorElső,4),\"\")","v":""},null,null,{"$f":"IFERROR(INDEX(tblEsemények[],SMALL(IF(Dátumok=U$26,ROW(Dátumok)),ROW(3:3))-TáblázatsorElső,4),\"\")","v":""}]
[null,null,{"$f":"IFERROR(INDEX(tblEsemények[],SMALL(IF(Dátumok=C$26,ROW(Dátumok)),ROW(4:4))-TáblázatsorElső,4),\"\")","v":""},null,null,{"$f":"IFERROR(INDEX(tblEsemények[],SMALL(IF(Dátumok=F$26,ROW(Dátumok)),ROW(4:4))-TáblázatsorElső,4),\"\")","v":""},null,null,{"$f":"IFERROR(INDEX(tblEsemények[],SMALL(IF(Dátumok=I$26,ROW(Dátumok)),ROW(4:4))-TáblázatsorElső,4),\"\")","v":""},null,null,{"$f":"IFERROR(INDEX(tblEsemények[],SMALL(IF(Dátumok=L$26,ROW(Dátumok)),ROW(4:4))-TáblázatsorElső,4),\"\")","v":""},null,null,{"$f":"IFERROR(INDEX(tblEsemények[],SMALL(IF(Dátumok=O$26,ROW(Dátumok)),ROW(4:4))-TáblázatsorElső,4),\"\")","v":""},null,null,{"$f":"IFERROR(INDEX(tblEsemények[],SMALL(IF(Dátumok=R$26,ROW(Dátumok)),ROW(4:4))-TáblázatsorElső,4),\"\")","v":""},null,null,{"$f":"IFERROR(INDEX(tblEsemények[],SMALL(IF(Dátumok=U$26,ROW(Dátumok)),ROW(4:4))-TáblázatsorElső,4),\"\")","v":""}]
[null,null,{"$f":"U26+1","v":"2016-08-01"},null,null,{"$f":"C31+1","v":"2016-08-02"},null,null,"JEGYZETEK:"]
[null,null,{"$f":"IFERROR(INDEX(tblEsemények[],SMALL(IF(Dátumok=C$31,ROW(Dátumok)),ROW(1:1))-TáblázatsorElső,4),\"\")","v":""},null,null,{"$f":"IFERROR(INDEX(tblEsemények[],SMALL(IF(Dátumok=F$31,ROW(Dátumok)),ROW(1:1))-TáblázatsorElső,4),\"\")","v":""}]
[null,null,{"$f":"IFERROR(INDEX(tblEsemények[],SMALL(IF(Dátumok=C$31,ROW(Dátumok)),ROW(2:2))-TáblázatsorElső,4),\"\")","v":""},null,null,{"$f":"IFERROR(INDEX(tblEsemények[],SMALL(IF(Dátumok=F$31,ROW(Dátumok)),ROW(2:2))-TáblázatsorElső,4),\"\")","v":""}]
[null,null,{"$f":"IFERROR(INDEX(tblEsemények[],SMALL(IF(Dátumok=C$31,ROW(Dátumok)),ROW(3:3))-TáblázatsorElső,4),\"\")","v":""},null,null,{"$f":"IFERROR(INDEX(tblEsemények[],SMALL(IF(Dátumok=F$31,ROW(Dátumok)),ROW(3:3))-TáblázatsorElső,4),\"\")","v":""}]
[null,null,{"$f":"IFERROR(INDEX(tblEsemények[],SMALL(IF(Dátumok=C$31,ROW(Dátumok)),ROW(4:4))-TáblázatsorElső,4),\"\")","v":""},null,null,{"$f":"IFERROR(INDEX(tblEsemények[],SMALL(IF(Dátumok=F$31,ROW(Dátumok)),ROW(4:4))-TáblázatsorElső,4),\"\")","v":""}]

{"sheet":"NYOMTATHATÓ VERZIÓ","index":2,"n_rows":35,"n_cols":21,"rows_kept":35,"merged":[[1,5,1,11],[30,8,34,20]]}
[]
[null,null,{"$f":"ÉvMegtekintése","v":2016},null,null,{"$f":"HónapMegtekintése","v":"JÚLIUS"},0,0,0,0,0,0]
[]
[null,null,"HÉTFŐ",null,null,"KEDD",null,null,"SZERDA",null,null,"CSÜTÖRTÖK",null,null,"PÉNTEK",null,null,"SZOMBAT",null,null,"VASÁRNAP"]
[]
[null,null,{"$f":"NAPTÁR!C6","v":"2016-06-27"},{"$f":"NAPTÁR!D6","v":0},{"$f":"NAPTÁR!E6","v":0},{"$f":"NAPTÁR!F6","v":"2016-06-28"},{"$f":"NAPTÁR!G6","v":0},{"$f":"NAPTÁR!H6","v":0},{"$f":"NAPTÁR!I6","v":"2016-06-29"},{"$f":"NAPTÁR!J6","v":0},{"$f":"NAPTÁR!K6","v":0},{"$f":"NAPTÁR!L6","v":"2016-06-30"},{"$f":"NAPTÁR!M6","v":0},{"$f":"NAPTÁR!N6","v":0},{"$f":"NAPTÁR!O6","v":"2016-07-01"},{"$f":"NAPTÁR!P6","v":0},{"$f":"NAPTÁR!Q6","v":0},{"$f":"NAPTÁR!R6","v":"2016-07-02"},{"$f":"NAPTÁR!S6","v":0},{"$f":"NAPTÁR!T6","v":0},{"$f":"NAPTÁR!U6","v":"2016-07-03"}]
[null,null,{"$f":"NAPTÁR!C7","v":""},{"$f":"NAPTÁR!D7","v":0},{"$f":"NAPTÁR!E7","v":0},{"$f":"NAPTÁR!F7","v":""},{"$f":"NAPTÁR!G7","v":0},{"$f":"NAPTÁR!H7","v":0},{"$f":"NAPTÁR!I7","v":""},{"$f":"NAPTÁR!J7","v":0},{"$f":"NAPTÁR!K7","v":0},{"$f":"NAPTÁR!L7","v":""},{"$f":"NAPTÁR!M7","v":0},{"$f":"NAPTÁR!N7","v":0},{"$f":"NAPTÁR!O7","v":"Közösségi kert"},{"$f":"NAPTÁR!P7","v":0},{"$f":"NAPTÁR!Q7","v":0},{"$f":"NAPTÁR!R7","v":"Közösségi kert"},{"$f":"NAPTÁR!S7","v":0},{"$f":"NAPTÁR!T7","v":0},{"$f":"NAPTÁR!U7","v":"Moziest a parkban"}]
[null,null,{"$f":"NAPTÁR!C8","v":""},{"$f":"NAPTÁR!D8","v":"00:00:00"},{"$f":"NAPTÁR!E8","v":"00:00:00"},{"$f":"NAPTÁR!F8","v":""},{"$f":"NAPTÁR!G8","v":"00:00:00"},{"$f":"NAPTÁR!H8","v":"00:00:00"},{"$f":"NAPTÁR!I8","v":""},{"$f":"NAPTÁR!J8","v":"00:00:00"},{"$f":"NAPTÁR!K8","v":"00:00:00"},{"$f":"NAPTÁR!L8","v":""},{"$f":"NAPTÁR!M8","v":"00:00:00"},{"$f":"NAPTÁR!N8","v":"00:00:00"},{"$f":"NAPTÁR!O8","v":"Városi bizottság"},{"$f":"NAPTÁR!P8","v":"00:00:00"},{"$f":"NAPTÁR!Q8","v":"00:00:00"},{"$f":"NAPTÁR!R8","v":""},{"$f":"NAPTÁR!S8","v":"00:00:00"},{"$f":"NAPTÁR!T8","v":"00:00:00"},{"$f":"NAPTÁR!U8","v":""}]
[null,null,{"$f":"NAPTÁR!C9","v":""},{"$f":"NAPTÁR!D9","v":0},{"$f":"NAPTÁR!E9","v":0},{"$f":"NAPTÁR!F9","v":""},{"$f":"NAPTÁR!G9","v":0},{"$f":"NAPTÁR!H9","v":0},{"$f":"NAPTÁR!I9","v":""},{"$f":"NAPTÁR!J9","v":0},{"$f":"NAPTÁR!K9","v":0},{"$f":"NAPTÁR!L9","v":""},{"$f":"NAPTÁR!M9","v":0},{"$f":"NAPTÁR!N9","v":0},{"$f":"NAPTÁR!O9","v":""},{"$f":"NAPTÁR!P9","v":0},{"$f":"NAPTÁR!Q9","v":0},{"$f":"NAPTÁR!R9","v":""},{"$f":"NAPTÁR!S9","v":0},{"$f":"NAPTÁR!T9","v":0},{"$f":"NAPTÁR!U9","v":""}]
[null,null,{"$f":"NAPTÁR!C10","v":""},{"$f":"NAPTÁR!D10","v":0},{"$f":"NAPTÁR!E10","v":0},{"$f":"NAPTÁR!F10","v":""},{"$f":"NAPTÁR!G10","v":0},{"$f":"NAPTÁR!H10","v":0},{"$f":"NAPTÁR!I10","v":""},{"$f":"NAPTÁR!J10","v":0},{"$f":"NAPTÁR!K10","v":0},{"$f":"NAPTÁR!L10","v":""},{"$f":"NAPTÁR!M10","v":0},{"$f":"NAPTÁR!N10","v":0},{"$f":"NAPTÁR!O10","v":""},{"$f":"NAPTÁR!P10","v":0},{"$f":"NAPTÁR!Q10","v":0},{"$f":"NAPTÁR!R10","v":""},{"$f":"NAPTÁR!S10","v":0},{"$f":"NAPTÁR!T10","v":0},{"$f":"NAPTÁR!U10","v":""}]
[null,null,{"$f":"NAPTÁR!C11","v":"2016-07-04"},{"$f":"NAPTÁR!D11","v":0},{"$f":"NAPTÁR!E11","v":0},{"$f":"NAPTÁR!F11","v":"2016-07-05"},{"$f":"NAPTÁR!G11","v":0},{"$f":"NAPTÁR!H11","v":0},{"$f":"NAPTÁR!I11","v":"2016-07-06"},{"$f":"NAPTÁR!J11","v":0},{"$f":"NAPTÁR!K11","v":0},{"$f":"NAPTÁR!L11","v":"2016-07-07"},{"$f":"NAPTÁR!M11","v":0},{"$f":"NAPTÁR!N11","v":0},{"$f":"NAPTÁR!O11","v":"2016-07-08"},{"$f":"NAPTÁR!P11","v":0},{"$f":"NAPTÁR!Q11","v":0},{"$f":"NAPTÁR!R11","v":"2016-07-09"},{"$f":"NAPTÁR!S11","v":0},{"$f":"NAPTÁR!T11","v":0},{"$f":"NAPTÁR!U11","v":"2016-07-10"}]
[null,null,{"$f":"NAPTÁR!C12","v":""},{"$f":"NAPTÁR!D12","v":0},{"$f":"NAPTÁR!E12","v":0},{"$f":"NAPTÁR!F12","v":""},{"$f":"NAPTÁR!G12","v":0},{"$f":"NAPTÁR!H12","v":0},{"$f":"NAPTÁR!I12","v":""},{"$f":"NAPTÁR!J12","v":0},{"$f":"NAPTÁR!K12","v":0},{"$f":"NAPTÁR!L12","v":""},{"$f":"NAPTÁR!M12","v":0},{"$f":"NAPTÁR!N12","v":0},{"$f":"NAPTÁR!O12","v":"Városi bizottság"},{"$f":"NAPTÁR!P12","v":0},{"$f":"NAPTÁR!Q12","v":0},{"$f":"NAPTÁR!R12","v":""},{"$f":"NAPTÁR!S12","v":0},{"$f":"NAPTÁR!T12","v":0},{"$f":"NAPTÁR!U12","v":""}]
[null,null,{"$f":"NAPTÁR!C13","v":""},{"$f":"NAPTÁR!D13","v":0},{"$f":"NAPTÁR!E13","v":0},{"$f":"NAPTÁR!F13","v":""},{"$f":"NAPTÁR!G13","v":0},{"$f":"NAPTÁR!H13","v":0},{"$f":"NAPTÁR!I13","v":""},{"$f":"NAPTÁR!J13","v":0},{"$f":"NAPTÁR!K13","v":0},{"$f":"NAPTÁR!L13","v":""},{"$f":"NAPTÁR!M13","v":0},{"$f":"NAPTÁR!N13","v":0},{"$f":"NAPTÁR!O13","v":""},{"$f":"NAPTÁR!P13","v":0},{"$f":"NAPTÁR!Q13","v":0},{"$f":"NAPTÁR!R13","v":""},{"$f":"NAPTÁR!S13","v":0},{"$f":"NAPTÁR!T13","v":0},{"$f":"NAPTÁR!U13","v":""}]
[null,null,{"$f":"NAPTÁR!C14","v":""},{"$f":"NAPTÁR!D14","v":0},{"$f":"NAPTÁR!E14","v":0},{"$f":"NAPTÁR!F14","v":""},{"$f":"NAPTÁR!G14","v":0},{"$f":"NAPTÁR!H14","v":0},{"$f":"NAPTÁR!I14","v":""},{"$f":"NAPTÁR!J14","v":0},{"$f":"NAPTÁR!K14","v":0},{"$f":"NAPTÁR!L14","v":""},{"$f":"NAPTÁR!M14","v":0},{"$f":"NAPTÁR!N14","v":0},{"$f":"NAPTÁR!O14","v":""},{"$f":"NAPTÁR!P14","v":0},{"$f":"NAPTÁR!Q14","v":0},{"$f":"NAPTÁR!R14","v":""},{"$f":"NAPTÁR!S14","v":0},{"$f":"NAPTÁR!T14","v":0},{"$f":"NAPTÁR!U14","v":""}]
[null,null,{"$f":"NAPTÁR!C15","v":""},{"$f":"NAPTÁR!D15","v":0},{"$f":"NAPTÁR!E15","v":0},{"$f":"NAPTÁR!F15","v":""},{"$f":"NAPTÁR!G15","v":0},{"$f":"NAPTÁR!H15","v":0},{"$f":"NAPTÁR!I15","v":""},{"$f":"NAPTÁR!J15","v":0},{"$f":"NAPTÁR!K15","v":0},{"$f":"NAPTÁR!L15","v":""},{"$f":"NAPTÁR!M15","v":0},{"$f":"NAPTÁR!N15","v":0},{"$f":"NAPTÁR!O15","v":""},{"$f":"NAPTÁR!P15","v":0},{"$f":"NAPTÁR!Q15","v":0},{"$f":"NAPTÁR!R15","v":""},{"$f":"NAPTÁR!S15","v":0},{"$f":"NAPTÁR!T15","v":0},{"$f":"NAPTÁR!U15","v":""}]
[null,null,{"$f":"NAPTÁR!C16","v":"2016-07-11"},{"$f":"NAPTÁR!D16","v":0},{"$f":"NAPTÁR!E16","v":0},{"$f":"NAPTÁR!F16","v":"2016-07-12"},{"$f":"NAPTÁR!G16","v":0},{"$f":"NAPTÁR!H16","v":0},{"$f":"NAPTÁR!I16","v":"2016-07-13"},{"$f":"NAPTÁR!J16","v":0},{"$f":"NAPTÁR!K16","v":0},{"$f":"NAPTÁR!L16","v":"2016-07-14"},{"$f":"NAPTÁR!M16","v":0},{"$f":"NAPTÁR!N16","v":0},{"$f":"NAPTÁR!O16","v":"2016-07-15"},{"$f":"NAPTÁR!P16","v":0},{"$f":"NAPTÁR!Q16","v":0},{"$f":"NAPTÁR!R16","v":"2016-07-16"},{"$f":"NAPTÁR!S16","v":0},{"$f":"NAPTÁR!T16","v":0},{"$f":"NAPTÁR!U16","v":"2016-07-17"}]
[null,null,{"$f":"NAPTÁR!C17","v":"Kamarai ebéd"},{"$f":"NAPTÁR!D17","v":0},{"$f":"NAPTÁR!E17","v":0},{"$f":"NAPTÁR!F17","v":"Régiségkiállítás"},{"$f":"NAPTÁR!G17","v":0},{"$f":"NAPTÁR!H17","v":0},{"$f":"NAPTÁR!I17","v":""},{"$f":"NAPTÁR!J17","v":0},{"$f":"NAPTÁR!K17","v":0},{"$f":"NAPTÁR!L17","v":"Közösségi műhely"},{"$f":"NAPTÁR!M17","v":0},{"$f":"NAPTÁR!N17","v":0},{"$f":"NAPTÁR!O17","v":"Városi bizottság"},{"$f":"NAPTÁR!P17","v":0},{"$f":"NAPTÁR!Q17","v":0},{"$f":"NAPTÁR!R17","v":""},{"$f":"NAPTÁR!S17","v":0},{"$f":"NAPTÁR!T17","v":0},{"$f":"NAPTÁR!U17","v":""}]
[null,null,{"$f":"NAPTÁR!C18","v":""},{"$f":"NAPTÁR!D18","v":0},{"$f":"NAPTÁR!E18","v":0},{"$f":"NAPTÁR!F18","v":""},{"$f":"NAPTÁR!G18","v":0},{"$f":"NAPTÁR!H18","v":0},{"$f":"NAPTÁR!I18","v":""},{"$f":"NAPTÁR!J18","v":0},{"$f":"NAPTÁR!K18","v":0},{"$f":"NAPTÁR!L18","v":""},{"$f":"NAPTÁR!M18","v":0},{"$f":"NAPTÁR!N18","v":0},{"$f":"NAPTÁR!O18","v":""},{"$f":"NAPTÁR!P18","v":0},{"$f":"NAPTÁR!Q18","v":0},{"$f":"NAPTÁR!R18","v":""},{"$f":"NAPTÁR!S18","v":0},{"$f":"NAPTÁR!T18","v":0},{"$f":"NAPTÁR!U18","v":""}]
[null,null,{"$f":"NAPTÁR!C19","v":""},{"$f":"NAPTÁR!D19","v":0},{"$f":"NAPTÁR!E19","v":0},{"$f":"NAPTÁR!F19","v":""},{"$f":"NAPTÁR!G19","v":0},{"$f":"NAPTÁR!H19","v":0},{"$f":"NAPTÁR!I19","v":""},{"$f":"NAPTÁR!J19","v":0},{"$f":"NAPTÁR!K19","v":0},{"$f":"NAPTÁR!L19","v":""},{"$f":"NAPTÁR!M19","v":0},{"$f":"NAPTÁR!N19","v":0},{"$f":"NAPTÁR!O19","v":""},{"$f":"NAPTÁR!P19","v":0},{"$f":"NAPTÁR!Q19","v":0},{"$f":"NAPTÁR!R19","v":""},{"$f":"NAPTÁR!S19","v":0},{"$f":"NAPTÁR!T19","v":0},{"$f":"NAPTÁR!U19","v":""}]
[null,null,{"$f":"NAPTÁR!C20","v":""},{"$f":"NAPTÁR!D20","v":0},{"$f":"NAPTÁR!E20","v":0},{"$f":"NAPTÁR!F20","v":""},{"$f":"NAPTÁR!G20","v":0},{"$f":"NAPTÁR!H20","v":0},{"$f":"NAPTÁR!I20","v":""},{"$f":"NAPTÁR!J20","v":0},{"$f":"NAPTÁR!K20","v":0},{"$f":"NAPTÁR!L20","v":""},{"$f":"NAPTÁR!M20","v":0},{"$f":"NAPTÁR!N20","v":0},{"$f":"NAPTÁR!O20","v":""},{"$f":"NAPTÁR!P20","v":0},{"$f":"NAPTÁR!Q20","v":0},{"$f":"NAPTÁR!R20","v":""},{"$f":"NAPTÁR!S20","v":0},{"$f":"NAPTÁR!T20","v":0},{"$f":"NAPTÁR!U20","v":""}]
[null,null,{"$f":"NAPTÁR!C21","v":"2016-07-18"},{"$f":"NAPTÁR!D21","v":0},{"$f":"NAPTÁR!E21","v":0},{"$f":"NAPTÁR!F21","v":"2016-07-19"},{"$f":"NAPTÁR!G21","v":0},{"$f":"NAPTÁR!H21","v":0},{"$f":"NAPTÁR!I21","v":"2016-07-20"},{"$f":"NAPTÁR!J21","v":0},{"$f":"NAPTÁR!K21","v":0},{"$f":"NAPTÁR!L21","v":"2016-07-21"},{"$f":"NAPTÁR!M21","v":0},{"$f":"NAPTÁR!N21","v":0},{"$f":"NAPTÁR!O21","v":"2016-07-22"},{"$f":"NAPTÁR!P21","v":0},{"$f":"NAPTÁR!Q21","v":0},{"$f":"NAPTÁR!R21","v":"2016-07-23"},{"$f":"NAPTÁR!S21","v":0},{"$f":"NAPTÁR!T21","v":0},{"$f":"NAPTÁR!U21","v":"2016-07-24"}]
[null,null,{"$f":"NAPTÁR!C22","v":""},{"$f":"NAPTÁR!D22","v":0},{"$f":"NAPTÁR!E22","v":0},{"$f":"NAPTÁR!F22","v":"Stratégiai tervezőműhely"},{"$f":"NAPTÁR!G22","v":0},{"$f":"NAPTÁR!H22","v":0},{"$f":"NAPTÁR!I22","v":"Parkkarbantartás"},{"$f":"NAPTÁR!J22","v":0},{"$f":"NAPTÁR!K22","v":0},{"$f":"NAPTÁR!L22","v":""},{"$f":"NAPTÁR!M22","v":0},{"$f":"NAPTÁR!N22","v":0},{"$f":"NAPTÁR!O22","v":"Városi bizottság"},{"$f":"NAPTÁR!P22","v":0},{"$f":"NAPTÁR!Q22","v":0},{"$f":"NAPTÁR!R22","v":""},{"$f":"NAPTÁR!S22","v":0},{"$f":"NAPTÁR!T22","v":0},{"$f":"NAPTÁR!U22","v":""}]
[null,null,{"$f":"NAPTÁR!C23","v":""},{"$f":"NAPTÁR!D23","v":0},{"$f":"NAPTÁR!E23","v":0},{"$f":"NAPTÁR!F23","v":""},{"$f":"NAPTÁR!G23","v":0},{"$f":"NAPTÁR!H23","v":0},{"$f":"NAPTÁR!I23","v":""},{"$f":"NAPTÁR!J23","v":0},{"$f":"NAPTÁR!K23","v":0},{"$f":"NAPTÁR!L23","v":""},{"$f":"NAPTÁR!M23","v":0},{"$f":"NAPTÁR!N23","v":0},{"$f":"NAPTÁR!O23","v":""},{"$f":"NAPTÁR!P23","v":0},{"$f":"NAPTÁR!Q23","v":0},{"$f":"NAPTÁR!R23","v":""},{"$f":"NAPTÁR!S23","v":0},{"$f":"NAPTÁR!T23","v":0},{"$f":"NAPTÁR!U23","v":""}]
[null,null,{"$f":"NAPTÁR!C24","v":""},{"$f":"NAPTÁR!D24","v":0},{"$f":"NAPTÁR!E24","v":0},{"$f":"NAPTÁR!F24","v":""},{"$f":"NAPTÁR!G24","v":0},{"$f":"NAPTÁR!H24","v":0},{"$f":"NAPTÁR!I24","v":""},{"$f":"NAPTÁR!J24","v":0},{"$f":"NAPTÁR!K24","v":0},{"$f":"NAPTÁR!L24","v":""},{"$f":"NAPTÁR!M24","v":0},{"$f":"NAPTÁR!N24","v":0},{"$f":"NAPTÁR!O24","v":""},{"$f":"NAPTÁR!P24","v":0},{"$f":"NAPTÁR!Q24","v":0},{"$f":"NAPTÁR!R24","v":""},{"$f":"NAPTÁR!S24","v":0},{"$f":"NAPTÁR!T24","v":0},{"$f":"NAPTÁR!U24","v":""}]
[null,null,{"$f":"NAPTÁR!C25","v":""},{"$f":"NAPTÁR!D25","v":0},{"$f":"NAPTÁR!E25","v":0},{"$f":"NAPTÁR!F25","v":""},{"$f":"NAPTÁR!G25","v":0},{"$f":"NAPTÁR!H25","v":0},{"$f":"NAPTÁR!I25","v":""},{"$f":"NAPTÁR!J25","v":0},{"$f":"NAPTÁR!K25","v":0},{"$f":"NAPTÁR!L25","v":""},{"$f":"NAPTÁR!M25","v":0},{"$f":"NAPTÁR!N25","v":0},{"$f":"NAPTÁR!O25","v":""},{"$f":"NAPTÁR!P25","v":0},{"$f":"NAPTÁR!Q25","v":0},{"$f":"NAPTÁR!R25","v":""},{"$f":"NAPTÁR!S25","v":0},{"$f":"NAPTÁR!T25","v":0},{"$f":"NAPTÁR!U25","v":""}]
[null,null,{"$f":"NAPTÁR!C26","v":"2016-07-25"},{"$f":"NAPTÁR!D26","v":0},{"$f":"NAPTÁR!E26","v":0},{"$f":"NAPTÁR!F26","v":"2016-07-26"},{"$f":"NAPTÁR!G26","v":0},{"$f":"NAPTÁR!H26","v":0},{"$f":"NAPTÁR!I26","v":"2016-07-27"},{"$f":"NAPTÁR!J26","v":0},{"$f":"NAPTÁR!K26","v":0},{"$f":"NAPTÁR!L26","v":"2016-07-28"},{"$f":"NAPTÁR!M26","v":0},{"$f":"NAPTÁR!N26","v":0},{"$f":"NAPTÁR!O26","v":"2016-07-29"},{"$f":"NAPTÁR!P26","v":0},{"$f":"NAPTÁR!Q26","v":0},{"$f":"NAPTÁR!R26","v":"2016-07-30"},{"$f":"NAPTÁR!S26","v":0},{"$f":"NAPTÁR!T26","v":0},{"$f":"NAPTÁR!U26","v":"2016-07-31"}]
[null,null,{"$f":"NAPTÁR!C27","v":""},{"$f":"NAPTÁR!D27","v":0},{"$f":"NAPTÁR!E27","v":0},{"$f":"NAPTÁR!F27","v":"Belvárosi séta"},{"$f":"NAPTÁR!G27","v":0},{"$f":"NAPTÁR!H27","v":0},{"$f":"NAPTÁR!I27","v":""},{"$f":"NAPTÁR!J27","v":0},{"$f":"NAPTÁR!K27","v":0},{"$f":"NAPTÁR!L27","v":""},{"$f":"NAPTÁR!M27","v":0},{"$f":"NAPTÁR!N27","v":0},{"$f":"NAPTÁR!O27","v":"Városi bizottság"},{"$f":"NAPTÁR!P27","v":0},{"$f":"NAPTÁR!Q27","v":0},{"$f":"NAPTÁR!R27","v":""},{"$f":"NAPTÁR!S27","v":0},{"$f":"NAPTÁR!T27","v":0},{"$f":"NAPTÁR!U27","v":""}]
[null,null,{"$f":"NAPTÁR!C28","v":""},{"$f":"NAPTÁR!D28","v":0},{"$f":"NAPTÁR!E28","v":0},{"$f":"NAPTÁR!F28","v":"Kocsmatúra"},{"$f":"NAPTÁR!G28","v":0},{"$f":"NAPTÁR!H28","v":0},{"$f":"NAPTÁR!I28","v":""},{"$f":"NAPTÁR!J28","v":0},{"$f":"NAPTÁR!K28","v":0},{"$f":"NAPTÁR!L28","v":""},{"$f":"NAPTÁR!M28","v":0},{"$f":"NAPTÁR!N28","v":0},{"$f":"NAPTÁR!O28","v":""},{"$f":"NAPTÁR!P28","v":0},{"$f":"NAPTÁR!Q28","v":0},{"$f":"NAPTÁR!R28","v":""},{"$f":"NAPTÁR!S28","v":0},{"$f":"NAPTÁR!T28","v":0},{"$f":"NAPTÁR!U28","v":""}]
[null,null,{"$f":"NAPTÁR!C29","v":""},{"$f":"NAPTÁR!D29","v":0},{"$f":"NAPTÁR!E29","v":0},{"$f":"NAPTÁR!F29","v":""},{"$f":"NAPTÁR!G29","v":0},{"$f":"NAPTÁR!H29","v":0},{"$f":"NAPTÁR!I29","v":""},{"$f":"NAPTÁR!J29","v":0},{"$f":"NAPTÁR!K29","v":0},{"$f":"NAPTÁR!L29","v":""},{"$f":"NAPTÁR!M29","v":0},{"$f":"NAPTÁR!N29","v":0},{"$f":"NAPTÁR!O29","v":""},{"$f":"NAPTÁR!P29","v":0},{"$f":"NAPTÁR!Q29","v":0},{"$f":"NAPTÁR!R29","v":""},{"$f":"NAPTÁR!S29","v":0},{"$f":"NAPTÁR!T29","v":0},{"$f":"NAPTÁR!U29","v":""}]
[null,null,{"$f":"NAPTÁR!C30","v":""},{"$f":"NAPTÁR!D30","v":0},{"$f":"NAPTÁR!E30","v":0},{"$f":"NAPTÁR!F30","v":""},{"$f":"NAPTÁR!G30","v":0},{"$f":"NAPTÁR!H30","v":0},{"$f":"NAPTÁR!I30","v":""},{"$f":"NAPTÁR!J30","v":0},{"$f":"NAPTÁR!K30","v":0},{"$f":"NAPTÁR!L30","v":""},{"$f":"NAPTÁR!M30","v":0},{"$f":"NAPTÁR!N30","v":0},{"$f":"NAPTÁR!O30","v":""},{"$f":"NAPTÁR!P30","v":0},{"$f":"NAPTÁR!Q30","v":0},{"$f":"NAPTÁR!R30","v":""},{"$f":"NAPTÁR!S30","v":0},{"$f":"NAPTÁR!T30","v":0},{"$f":"NAPTÁR!U30","v":""}]
[null,null,{"$f":"NAPTÁR!C31","v":"2016-08-01"},{"$f":"NAPTÁR!D31","v":0},{"$f":"NAPTÁR!E31","v":0},{"$f":"NAPTÁR!F31","v":"2016-08-02"},null,null,{"$f":"NAPTÁR!I31","v":"JEGYZETEK:"}]
[null,null,{"$f":"NAPTÁR!C32","v":""},{"$f":"NAPTÁR!D32","v":0},{"$f":"NAPTÁR!E32","v":0},{"$f":"NAPTÁR!F32","v":""}]
[null,null,{"$f":"NAPTÁR!C33","v":""},{"$f":"NAPTÁR!D33","v":0},{"$f":"NAPTÁR!E33","v":0},{"$f":"NAPTÁR!F33","v":""}]
[null,null,{"$f":"NAPTÁR!C34","v":""},{"$f":"NAPTÁR!D34","v":0},{"$f":"NAPTÁR!E34","v":0},{"$f":"NAPTÁR!F34","v":""}]
[null,null,{"$f":"NAPTÁR!C35","v":""},{"$f":"NAPTÁR!D35","v":0},{"$f":"NAPTÁR!E35","v":0},{"$f":"NAPTÁR!F35","v":""}]

{"sheet":"RENDSZERGAZDA","index":3,"n_rows":14,"n_cols":3,"rows_kept":14,"hidden":true}
[]
[null,"HÓNAP","SZÁM"]
[null,"JANUÁR",1]
[null,"FEBRUÁR",2]
[null,"MÁRCIUS",3]
[null,"ÁPRILIS",4]
[null,"MÁJUS",5]
[null,"JÚNIUS",6]
[null,"JÚLIUS",7]
[null,"AUGUSZTUS",8]
[null,"SZEPTEMBER",9]
[null,"OKTÓBER",10]
[null,"NOVEMBER",11]
[null,"DECEMBER",12]